fUST/lending_fUST_20250318
["ID","MTS","AMOUNT","RATE_DAILY","PERIOD"]
[356310644,1742243448222,-500.0,8.767e-05,2]
[356310645,1742243448232,-415.68232348,8.767e-05,2]
[356310646,1742243448243,-500.0,8.767e-05,2]
[356310647,1742243448254,-500.0,8.767e-05,2]
[356310648,1742243448265,-500.0,8.767e-05,2]
[356310649,1742243448275,-500.0,8.767e-05,2]
[356310650,1742243448286,-500.0,8.767e-05,2]
[356310651,1742243448296,-500.0,8.767e-05,2]
[356310652,1742243448306,-8431.49,8.767e-05,2]
[356310653,1742243448316,-500.0,8.767e-05,2]
[356310654,1742243448326,-500.0,8.767e-05,2]
[356310655,1742243448336,-500.0,8.767e-05,2]
[356310656,1742243448346,-500.0,8.767e-05,2]
[356310657,1742243448356,-500.0,8.767e-05,2]
[356310658,1742243448367,-500.0,8.767e-05,2]
[356310659,1742243448376,-500.0,8.767e-05,2]
[356310660,1742243448386,-500.0,8.767e-05,2]
[356310661,1742243448396,-500.0,8.767e-05,2]
[356310662,1742243448507,-500.0,8.767e-05,2]
[356310663,1742243448529,-500.0,8.767e-05,2]
[356310664,1742243448539,-1860.86,8.767e-05,2]
[356310665,1742243448552,-500.0,8.767e-05,2]
[356310666,1742243448564,-500.0,8.767e-05,2]
[356310667,1742243448574,-500.0,8.767e-05,2]
[356310668,1742243448585,-500.0,8.767e-05,2]
[356310669,1742243448596,-4892.23,8.767e-05,2]
[356310670,1742243448606,-500.0,8.767e-05,2]
[356310671,1742243448616,-2012.02,8.767e-05,2]
[356310672,1742243448625,-500.0,8.767e-05,2]
[356310673,1742243448635,-500.0,8.767e-05,2]
[356310674,1742243448645,-500.0,8.767e-05,2]
[356310675,1742243448654,-500.0,8.767e-05,2]
[356310676,1742243448663,-500.0,8.767e-05,2]
[356310677,1742243448673,-500.0,8.767e-05,2]
[356310678,1742243448682,-500.0,8.767e-05,2]
[356310679,1742243448692,-500.0,8.767e-05,2]
[356310680,1742243448702,-523.97743146,8.767e-05,2]
[356310681,1742243448712,-500.0,8.767e-05,2]
[356310682,1742243448721,-500.0,8.767e-05,2]
[356310683,1742243448731,-545.65712249,8.767e-05,2]
[356310684,1742243448740,-1316.18,8.767e-05,2]
[356310685,1742243448750,-500.0,8.767e-05,2]
[356310686,1742243448759,-500.0,8.767e-05,2]
[356310687,1742243448769,-500.0,8.767e-05,2]
[356310688,1742243448779,-500.0,8.767e-05,2]
[356310689,1742243448789,-1829.85,8.767e-05,2]
[356310690,1742243448798,-500.0,8.767e-05,2]
[356310691,1742243448808,-500.0,8.767e-05,2]
[356310692,1742243448817,-500.0,8.767e-05,2]
[356310693,1742243448827,-500.0,8.767e-05,2]
[356310694,1742243448836,-500.0,8.767e-05,2]
[356310695,1742243448846,-500.0,8.767e-05,2]
[356310696,1742243448856,-627.22,8.767e-05,2]
[356310697,1742243448865,-500.0,8.767e-05,2]
[356310698,1742243448875,-500.0,8.767e-05,2]
[356310699,1742243448884,-500.0,8.767e-05,2]
[356310700,1742243448894,-500.0,8.767e-05,2]
[356310701,1742243448903,-500.0,8.767e-05,2]
[356310702,1742243448913,-3952.01,8.767e-05,2]
[356310703,1742243448923,-500.0,8.767e-05,2]
[356310704,1742243448932,-511.02088603,8.767e-05,2]
[356310705,1742243448943,-500.0,8.767e-05,2]
[356310706,1742243448953,-500.0,8.767e-05,2]
[356310707,1742243448963,-588.74309382,8.767e-05,2]
[356310708,1742243448973,-500.0,8.767e-05,2]
[356310709,1742243448983,-500.0,8.767e-05,2]
[356310710,1742243448993,-7994.74,8.767e-05,2]
[356310711,1742243449003,-736.49,8.767e-05,2]
[356310712,1742243449012,-577.40701649,8.767e-05,2]
[356310713,1742243449022,-718.33,8.767e-05,2]
[356310714,1742243449032,-500.0,8.767e-05,2]
[356310715,1742243449042,-500.0,8.767e-05,2]
[356310716,1742243449052,-500.0,8.767e-05,2]
[356310717,1742243449063,-552.52,8.767e-05,2]
[356310718,1742243449073,-500.0,8.767e-05,2]
[356310719,1742243449083,-500.0,8.767e-05,2]
[356310720,1742243449094,-500.0,8.767e-05,2]
[356310721,1742243449104,-606.29,8.767e-05,2]
[356310722,1742243449114,-500.0,8.767e-05,2]
[356310723,1742243449124,-500.0,8.767e-05,2]
[356310724,1742243449134,-500.0,8.767e-05,2]
[356310725,1742243449144,-500.0,8.767e-05,2]
[356310726,1742243449154,-500.0,8.767e-05,2]
[356310727,1742243449164,-500.0,8.767e-05,2]
[356310728,1742243449174,-475.9179549,8.767e-05,2]
[356310729,1742243449185,-500.0,8.767e-05,2]
[356310730,1742243449195,-1420.62,8.767e-05,2]
[356310731,1742243449205,-500.0,8.767e-05,2]
[356310732,1742243449216,-500.0,8.767e-05,2]
[356310733,1742243449225,-500.0,8.767e-05,2]
[356310734,1742243449234,-500.0,8.767e-05,2]
[356310735,1742243449244,-500.0,8.767e-05,2]
[356310736,1742243449253,-500.0,8.767e-05,2]
[356310737,1742243449263,-500.0,8.767e-05,2]
[356310738,1742243449273,-500.0,8.767e-05,2]
[356310739,1742243449283,-500.0,8.767e-05,2]
[356310740,1742243449293,-500.0,8.767e-05,2]
[356310741,1742243449303,-500.0,8.767e-05,2]
[356310742,1742243449313,-446.16938458,8.767e-05,2]
[356310743,1742243449323,-500.0,8.767e-05,2]
[356310744,1742243449333,-7705.67,8.767e-05,2]
[356310745,1742243449344,-500.0,8.767e-05,2]
[356310746,1742243449354,-500.0,8.767e-05,2]
[356310747,1742243449366,-1175.79,8.767e-05,2]
[356310748,1742243449376,-500.0,8.767e-05,2]
[356310749,1742243449386,-324.66093183,8.767e-05,2]
[356310750,1742243449396,-1092.32,8.767e-05,2]
[356310751,1742243449406,-918.13,8.767e-05,2]
[356310752,1742243449416,-500.0,8.767e-05,2]
[356310753,1742243449425,-500.0,8.767e-05,2]
[356310754,1742243449434,-2684.63,8.767e-05,2]
[356310755,1742243449444,-500.0,8.767e-05,2]
[356310756,1742243449454,-500.0,8.767e-05,2]
[356310757,1742243449464,-500.0,8.767e-05,2]
[356310758,1742243449475,-631.43805004,8.767e-05,2]
[356310759,1742243449485,-500.0,8.767e-05,2]
[356310760,1742243449495,-500.0,8.767e-05,2]
[356310761,1742243449505,-500.0,8.767e-05,2]
[356310762,1742243449515,-3786.99,8.767e-05,2]
[356310763,1742243449524,-500.0,8.767e-05,2]
[356310764,1742243449534,-500.0,8.767e-05,2]
[356310765,1742243449547,-500.0,8.767e-05,2]
[356310766,1742243449558,-500.0,8.767e-05,2]
[356310767,1742243449568,-6269.22,8.767e-05,2]
[356310768,1742243449578,-500.0,8.767e-05,2]
[356310769,1742243449587,-3048.37,8.767e-05,2]
[356310770,1742243449596,-500.0,8.767e-05,2]
[356310771,1742243449606,-569.56302705,8.767e-05,2]
[356310772,1742243449615,-500.0,8.767e-05,2]
[356310773,1742243449625,-13026.42,8.767e-05,2]
[356310774,1742243449635,-3970.67,8.767e-05,2]
[356310775,1742243449644,-500.0,8.767e-05,2]
[356310776,1742243449653,-500.0,8.767e-05,2]
[356310777,1742243449663,-500.0,8.767e-05,2]
[356310778,1742243449673,-500.0,8.767e-05,2]
[356310779,1742243449682,-585.55,8.767e-05,2]
[356310780,1742243449694,-1435.09,8.767e-05,2]
[356310781,1742243449704,-500.0,8.767e-05,2]
[356310782,1742243449713,-500.0,8.767e-05,2]
[356310783,1742243449722,-500.0,8.767e-05,2]
[356310784,1742243449732,-500.0,8.767e-05,2]
[356310785,1742243449741,-500.0,8.767e-05,2]
[356310786,1742243449751,-500.0,8.767e-05,2]
[356310787,1742243449760,-500.0,8.767e-05,2]
[356310788,1742243449770,-15391.43,8.767e-05,2]
[356310789,1742243449780,-500.0,8.767e-05,2]
[356310790,1742243449789,-3128.85,8.767e-05,2]
[356310791,1742243449799,-500.0,8.767e-05,2]
[356310792,1742243449808,-1677.7,8.767e-05,2]
[356310793,1742243449817,-500.0,8.767e-05,2]
[356310794,1742243449827,-500.0,8.767e-05,2]
[356310795,1742243449836,-500.0,8.767e-05,2]
[356310796,1742243449846,-856.61,8.767e-05,2]
[356310797,1742243449855,-539.78756385,8.767e-05,2]
[356310798,1742243449864,-500.0,8.767e-05,2]
[356310799,1742243449873,-500.0,8.767e-05,2]
[356310800,1742243449882,-500.0,8.767e-05,2]
[356310801,1742243449891,-908.93,8.767e-05,2]
[356310802,1742243449901,-1749.85,8.767e-05,2]
[356310803,1742243449910,-1232.66,8.767e-05,2]
[356310804,1742243449919,-500.0,8.767e-05,2]
[356310805,1742243449928,-500.0,8.767e-05,2]
[356310806,1742243449937,-500.0,8.767e-05,2]
[356310807,1742243449950,-500.0,8.767e-05,2]
[356310808,1742243449960,-2995.73,8.767e-05,2]
[356310809,1742243449970,-3391.19,8.767e-05,2]
[356310810,1742243449980,-500.0,8.767e-05,2]
[356310811,1742243449989,-1168.28,8.767e-05,2]
[356310812,1742243449999,-500.0,8.767e-05,2]
[356310813,1742243450009,-920.76,8.767e-05,2]
[356310814,1742243450018,-5734.43,8.767e-05,2]
[356310815,1742243450027,-730.67,8.767e-05,2]
[356310816,1742243450037,-1018.67,8.767e-05,2]
[356310817,1742243450046,-500.0,8.767e-05,2]
[356310818,1742243450055,-500.0,8.767e-05,2]
[356310819,1742243450064,-500.0,8.767e-05,2]
[356310820,1742243450073,-110707.11,8.767e-05,2]
[356310821,1742243450082,-500.0,8.767e-05,2]
[356310822,1742243450092,-11406.95,8.767e-05,2]
[356310823,1742243450101,-500.0,8.767e-05,2]
[356310824,1742243450111,-3624.19,8.767e-05,2]
[356310825,1742243450120,-500.0,8.767e-05,2]
[356310826,1742243450130,-500.0,8.767e-05,2]
[356310827,1742243450139,-500.0,8.767e-05,2]
[356310828,1742243450149,-809.34,8.767e-05,2]
[356310829,1742243450158,-893.14,8.767e-05,2]
[356310830,1742243450167,-500.0,8.767e-05,2]
[356310831,1742243450177,-6164.8,8.767e-05,2]
[356310832,1742243450186,-500.0,8.767e-05,2]
[356310833,1742243450199,-591.11882173,8.767e-05,2]
[356310834,1742243450208,-11345.71,8.767e-05,2]
[356310835,1742243450217,-500.0,8.767e-05,2]
[356310836,1742243450226,-500.0,8.767e-05,2]
[356310837,1742243450236,-500.0,8.767e-05,2]
[356310838,1742243450246,-500.0,8.767e-05,2]
[356310839,1742243450256,-500.0,8.767e-05,2]
[356310840,1742243450266,-500.0,8.767e-05,2]
[356310841,1742243450275,-1021.16,8.767e-05,2]
[356310842,1742243450284,-500.0,8.767e-05,2]
[356310843,1742243450294,-500.0,8.767e-05,2]
[356310844,1742243450303,-500.0,8.767e-05,2]
[356310845,1742243450312,-894.78268339,8.819e-05,2]
[356310846,1742243450322,-927.88964268,8.874e-05,2]
[356310847,1742243450331,-217.124714,8.877e-05,2]
[356310848,1742243450340,-420.0,8.927e-05,2]
[356310849,1742243450349,-962.22155946,8.929e-05,2]
[356310850,1742243450359,-239116.4324898,9.041e-05,2]
[356310851,1742243450369,-47571.14426741,9.041e-05,2]
[356310852,1742243450378,-151.0,9.041e-05,2]
[356310853,1742243450387,-500.0,9.041e-05,2]
[356310854,1742243450492,-500.0,9.041e-05,2]
[356310855,1742243450511,-500.0,9.041e-05,2]
[356310856,1742243450521,-500.0,9.041e-05,2]
[356310857,1742243450531,-500.0,9.041e-05,2]
[356310858,1742243450541,-500.0,9.041e-05,2]
[356310859,1742243450551,-551.83087853,9.041e-05,2]
[356310860,1742243450560,-198.55497705,9.041e-05,2]
[356310861,1742243450570,-500.0,9.041e-05,2]
[356310862,1742243450579,-500.0,9.041e-05,2]
[356310863,1742243450588,-500.0,9.041e-05,2]
[356310864,1742243450597,-500.0,9.041e-05,2]
[356310865,1742243450606,-500.0,9.041e-05,2]
[356310866,1742243450615,-500.0,9.041e-05,2]
[356310867,1742243450625,-500.0,9.041e-05,2]
[356310868,1742243450634,-500.0,9.041e-05,2]
[356310869,1742243450644,-500.0,9.041e-05,2]
[356310870,1742243450654,-500.0,9.041e-05,2]
[356310871,1742243450663,-580.39369652,9.041e-05,2]
[356310872,1742243450672,-514.86531919,9.041e-05,2]
[356310873,1742243450682,-500.0,9.041e-05,2]
[356310874,1742243450693,-500.0,9.041e-05,2]
[356310875,1742243450702,-500.0,9.041e-05,2]
[356310876,1742243450711,-500.0,9.041e-05,2]
[356310877,1742243450720,-500.0,9.041e-05,2]
[356310878,1742243450730,-607.50371494,9.041e-05,2]
[356310879,1742243450739,-500.0,9.041e-05,2]
[356310880,1742243450748,-500.0,9.041e-05,2]
[356310881,1742243450758,-500.0,9.041e-05,2]
[356310882,1742243450767,-500.0,9.041e-05,2]
[356310883,1742243450777,-500.0,9.041e-05,2]
[356310884,1742243450786,-500.0,9.041e-05,2]
[356310885,1742243450795,-581.22,9.041e-05,2]
[356310886,1742243450805,-595.46641418,9.041e-05,2]
[356310887,1742243450815,-500.0,9.041e-05,2]
[356310888,1742243450824,-500.0,9.041e-05,2]
[356310889,1742243450834,-523.30119005,9.041e-05,2]
[356310890,1742243450843,-500.0,9.041e-05,2]
[356310891,1742243450855,-500.0,9.041e-05,2]
[356310892,1742243450865,-500.0,9.041e-05,2]
[356310893,1742243450875,-500.0,9.041e-05,2]
[356310894,1742243450884,-500.0,9.041e-05,2]
[356310895,1742243450894,-500.0,9.041e-05,2]
[356310896,1742243450903,-500.0,9.041e-05,2]
[356310897,1742243450913,-511.93427204,9.041e-05,2]
[356310898,1742243450922,-500.0,9.041e-05,2]
[356310899,1742243450933,-500.0,9.041e-05,2]
[356310900,1742243450943,-500.0,9.041e-05,2]
[356310901,1742243450952,-500.0,9.041e-05,2]
[356310902,1742243450961,-500.0,9.041e-05,2]
[356310903,1742243450971,-497.08338036,9.041e-05,2]
[356310904,1742243450981,-409.67160634,9.041e-05,2]
[356310905,1742243450990,-500.0,9.041e-05,2]
[356310906,1742243451000,-500.0,9.041e-05,2]
[356310907,1742243451010,-500.0,9.041e-05,2]
[356310908,1742243451019,-500.0,9.041e-05,2]
[356310909,1742243451029,-500.0,9.041e-05,2]
[356310910,1742243451038,-500.0,9.041e-05,2]
[356310911,1742243451047,-500.0,9.041e-05,2]
[356310912,1742243451057,-500.0,9.041e-05,2]
[356310913,1742243451066,-500.0,9.041e-05,2]
[356310914,1742243451075,-500.0,9.041e-05,2]
[356310915,1742243451084,-500.0,9.041e-05,2]
[356310916,1742243451094,-500.0,9.041e-05,2]
[356310917,1742243451103,-500.0,9.041e-05,2]
[356310918,1742243451112,-500.0,9.041e-05,2]
[356310919,1742243451122,-500.0,9.041e-05,2]
[356310920,1742243451132,-500.0,9.041e-05,2]
[356310921,1742243451141,-198.6,9.041e-05,2]
[356310922,1742243451151,-500.0,9.041e-05,2]
[356310923,1742243451160,-1094.61,9.041e-05,2]
[356310924,1742243451169,-500.0,9.041e-05,2]
[356310925,1742243451179,-1047.41,9.041e-05,2]
[356310926,1742243451188,-1128.85,9.041e-05,2]
[356310927,1742243451198,-1565.12,9.041e-05,2]
[356310928,1742243451208,-429.72592904,9.041e-05,2]
[356310929,1742243451218,-591.41,9.041e-05,2]
[356310930,1742243451227,-500.0,9.041e-05,2]
[356310931,1742243451236,-500.0,9.041e-05,2]
[356310932,1742243451246,-500.0,9.041e-05,2]
[356310933,1742243451255,-1057.67,9.041e-05,2]
[356310934,1742243451265,-500.0,9.041e-05,2]
[356310935,1742243451275,-500.0,9.041e-05,2]
[356310936,1742243451284,-500.0,9.041e-05,2]
[356310937,1742243451293,-500.0,9.041e-05,2]
[356310938,1742243451303,-500.0,9.041e-05,2]
[356310939,1742243451313,-1096.52,9.041e-05,2]
[356310940,1742243451322,-1368.76,9.041e-05,2]
[356310941,1742243451332,-702.93821054,9.041e-05,2]
[356310942,1742243451341,-500.0,9.041e-05,2]
[356310943,1742243451350,-500.0,9.041e-05,2]
[356310944,1742243451358,-744.35,9.041e-05,2]
[356310945,1742243451368,-500.0,9.041e-05,2]
[356310946,1742243451377,-500.0,9.041e-05,2]
[356310947,1742243451386,-500.0,9.041e-05,2]
[356310948,1742243451396,-500.0,9.041e-05,2]
[356310949,1742243451405,-500.0,9.041e-05,2]
[356310950,1742243451414,-500.0,9.041e-05,2]
[356310951,1742243451423,-500.0,9.041e-05,2]
[356310952,1742243451432,-500.0,9.041e-05,2]
[356310953,1742243451442,-500.0,9.041e-05,2]
[356310954,1742243451452,-500.0,9.041e-05,2]
[356310955,1742243451462,-500.0,9.041e-05,2]
[356310956,1742243451472,-500.0,9.041e-05,2]
[356310957,1742243451484,-500.0,9.041e-05,2]
[356310958,1742243451493,-651.35,9.041e-05,2]
[356310959,1742243451502,-500.0,9.041e-05,2]
[356310960,1742243451511,-500.0,9.041e-05,2]
[356310961,1742243451522,-500.0,9.041e-05,2]
[356310962,1742243451531,-500.0,9.041e-05,2]
[356310963,1742243451540,-500.0,9.041e-05,2]
[356310964,1742243451550,-553.16,9.041e-05,2]
[356310965,1742243451560,-500.0,9.041e-05,2]
[356310966,1742243451569,-500.0,9.041e-05,2]
[356310967,1742243451579,-500.0,9.041e-05,2]
[356310968,1742243451588,-500.0,9.041e-05,2]
[356310969,1742243451598,-500.0,9.041e-05,2]
[356310970,1742243451607,-500.0,9.041e-05,2]
[356310971,1742243451616,-500.0,9.041e-05,2]
[356310972,1742243451626,-524.01,9.041e-05,2]
[356310973,1742243451636,-500.0,9.041e-05,2]
[356310974,1742243451645,-500.0,9.041e-05,2]
[356310975,1742243451655,-500.0,9.041e-05,2]
[356310976,1742243451664,-500.0,9.041e-05,2]
[356310977,1742243451674,-999.4,9.041e-05,2]
[356310978,1742243451683,-500.0,9.041e-05,2]
[356310979,1742243451693,-500.0,9.041e-05,2]
[356310980,1742243451703,-500.0,9.041e-05,2]
[356310981,1742243451712,-500.0,9.041e-05,2]
[356310982,1742243451721,-500.0,9.041e-05,2]
[356310983,1742243451731,-500.0,9.041e-05,2]
[356310984,1742243451740,-8431.49,9.041e-05,2]
[356310985,1742243451749,-500.0,9.041e-05,2]
[356310986,1742243451758,-534.25535556,9.041e-05,2]
[356310987,1742243451768,-332.22,9.041e-05,2]
[356310988,1742243451778,-500.0,9.041e-05,2]
[356310989,1742243451787,-500.0,9.041e-05,2]
[356310990,1742243451796,-500.0,9.041e-05,2]
[356310991,1742243451805,-1860.86,9.041e-05,2]
[356310992,1742243451815,-500.0,9.041e-05,2]
[356310993,1742243451825,-500.0,9.041e-05,2]
[356310994,1742243451834,-4892.23,9.041e-05,2]
[356310995,1742243451843,-500.0,9.041e-05,2]
[356310996,1742243451853,-2012.02,9.041e-05,2]
[356310997,1742243451862,-500.0,9.041e-05,2]
[356310998,1742243451871,-500.0,9.041e-05,2]
[356310999,1742243451881,-500.0,9.041e-05,2]
[356311000,1742243451890,-234.75812875,9.041e-05,2]
[356311001,1742243451899,-500.0,9.041e-05,2]
[356311002,1742243451911,-500.0,9.041e-05,2]
[356311003,1742243451925,-500.0,9.041e-05,2]
[356311004,1742243451936,-500.0,9.041e-05,2]
[356311005,1742243451947,-500.0,9.041e-05,2]
[356311006,1742243451956,-1316.18,9.041e-05,2]
[356311007,1742243451966,-500.0,9.041e-05,2]
[356311008,1742243451975,-500.0,9.041e-05,2]
[356311009,1742243451984,-500.0,9.041e-05,2]
[356311010,1742243451993,-1829.85,9.041e-05,2]
[356311011,1742243452002,-500.0,9.041e-05,2]
[356311012,1742243452012,-500.0,9.041e-05,2]
[356311013,1742243452021,-500.0,9.041e-05,2]
[356311014,1742243452030,-500.0,9.041e-05,2]
[356311015,1742243452040,-500.0,9.041e-05,2]
[356311016,1742243452050,-500.0,9.041e-05,2]
[356311017,1742243452059,-627.22,9.041e-05,2]
[356311018,1742243452068,-500.0,9.041e-05,2]
[356311019,1742243452078,-500.0,9.041e-05,2]
[356311020,1742243452087,-500.0,9.041e-05,2]
[356311021,1742243452096,-500.0,9.041e-05,2]
[356311022,1742243452106,-3952.01,9.041e-05,2]
[356311023,1742243452115,-500.0,9.041e-05,2]
[356311024,1742243452125,-500.0,9.041e-05,2]
[356311025,1742243452135,-500.0,9.041e-05,2]
[356311026,1742243452144,-500.0,9.041e-05,2]
[356311027,1742243452153,-7994.74,9.041e-05,2]
[356311028,1742243452163,-736.49,9.041e-05,2]
[356311029,1742243452172,-718.33,9.041e-05,2]
[356311030,1742243452182,-500.0,9.041e-05,2]
[356311031,1742243452292,-500.0,9.041e-05,2]
[356311032,1742243452302,-500.0,9.041e-05,2]
[356311033,1742243452312,-552.52,9.041e-05,2]
[356311034,1742243452321,-190.68,9.041e-05,2]
[356311035,1742243452331,-500.0,9.041e-05,2]
[356311036,1742243452340,-606.29,9.041e-05,2]
[356311037,1742243452350,-500.0,9.041e-05,2]
[356311038,1742243452359,-500.0,9.041e-05,2]
[356311039,1742243452369,-500.0,9.041e-05,2]
[356311040,1742243452379,-500.0,9.041e-05,2]
[356311041,1742243452388,-500.0,9.041e-05,2]
[356311042,1742243452398,-1420.62,9.041e-05,2]
[356311043,1742243452407,-500.0,9.041e-05,2]
[356311044,1742243452417,-500.0,9.041e-05,2]
[356311045,1742243452427,-500.0,9.041e-05,2]
[356311046,1742243452436,-500.0,9.041e-05,2]
[356311047,1742243452448,-500.0,9.041e-05,2]
[356311048,1742243452457,-500.0,9.041e-05,2]
[356311049,1742243452467,-500.0,9.041e-05,2]
[356311050,1742243452479,-500.0,9.041e-05,2]
[356311051,1742243452488,-500.0,9.041e-05,2]
[356311052,1742243452498,-500.0,9.041e-05,2]
[356311053,1742243452507,-7705.67,9.041e-05,2]
[356311054,1742243452517,-500.0,9.041e-05,2]
[356311055,1742243452527,-500.0,9.041e-05,2]
[356311056,1742243452536,-1175.79,9.041e-05,2]
[356311057,1742243452546,-500.0,9.041e-05,2]
[356311058,1742243452557,-1092.32,9.041e-05,2]
[356311059,1742243452567,-918.13,9.041e-05,2]
[356311060,1742243452576,-500.0,9.041e-05,2]
[356311061,1742243452586,-500.0,9.041e-05,2]
[356311062,1742243452595,-2684.63,9.041e-05,2]
[356311063,1742243452604,-500.0,9.041e-05,2]
[356311064,1742243452614,-500.0,9.041e-05,2]
[356311065,1742243452623,-500.0,9.041e-05,2]
[356311066,1742243452633,-500.0,9.041e-05,2]
[356311067,1742243452643,-500.0,9.041e-05,2]
[356311068,1742243452652,-3786.99,9.041e-05,2]
[356311069,1742243452661,-500.0,9.041e-05,2]
[356311070,1742243452671,-500.0,9.041e-05,2]
[356311071,1742243452680,-500.0,9.041e-05,2]
[356311072,1742243452689,-6269.22,9.041e-05,2]
[356311073,1742243452699,-500.0,9.041e-05,2]
[356311074,1742243452709,-3048.37,9.041e-05,2]
[356311075,1742243452719,-500.0,9.041e-05,2]
[356311076,1742243452728,-500.0,9.041e-05,2]
[356311077,1742243452737,-3970.67,9.041e-05,2]
[356311078,1742243452746,-13026.42,9.041e-05,2]
[356311079,1742243452755,-500.0,9.041e-05,2]
[356311080,1742243452765,-500.0,9.041e-05,2]
[356311081,1742243452774,-500.0,9.041e-05,2]
[356311082,1742243452784,-585.55,9.041e-05,2]
[356311083,1742243452793,-500.0,9.041e-05,2]
[356311084,1742243452803,-1435.09,9.041e-05,2]
[356311085,1742243452812,-500.0,9.041e-05,2]
[356311086,1742243452822,-500.0,9.041e-05,2]
[356311087,1742243452831,-500.0,9.041e-05,2]
[356311088,1742243452840,-420.96864364,9.041e-05,2]
[356311089,1742243452848,-500.0,9.041e-05,2]
[356311090,1742243452857,-500.0,9.041e-05,2]
[356311091,1742243452867,-500.0,9.041e-05,2]
[356311092,1742243452876,-15391.43,9.041e-05,2]
[356311093,1742243452885,-500.0,9.041e-05,2]
[356311094,1742243452895,-3128.85,9.041e-05,2]
[356311095,1742243452907,-500.0,9.041e-05,2]
[356311096,1742243452916,-1677.7,9.041e-05,2]
[356311097,1742243452926,-500.0,9.041e-05,2]
[356311098,1742243452935,-500.0,9.041e-05,2]
[356311099,1742243452945,-500.0,9.041e-05,2]
[356311100,1742243452955,-856.61,9.041e-05,2]
[356311101,1742243452965,-500.0,9.041e-05,2]
[356311102,1742243452974,-500.0,9.041e-05,2]
[356311103,1742243452984,-908.93,9.041e-05,2]
[356311104,1742243452993,-1749.85,9.041e-05,2]
[356311105,1742243453003,-1232.66,9.041e-05,2]
[356311106,1742243453013,-500.0,9.041e-05,2]
[356311107,1742243453023,-500.0,9.041e-05,2]
[356311108,1742243453032,-500.0,9.041e-05,2]
[356311109,1742243453042,-2995.73,9.041e-05,2]
[356311110,1742243453051,-3391.19,9.041e-05,2]
[356311111,1742243453060,-500.0,9.041e-05,2]
[356311112,1742243453070,-1168.28,9.041e-05,2]
[356311113,1742243453084,-500.0,9.041e-05,2]
[356311114,1742243453104,-920.76,9.041e-05,2]
[356311115,1742243453119,-730.67,9.041e-05,2]
[356311116,1742243453139,-5734.43,9.041e-05,2]
[356311117,1742243453157,-1018.67,9.041e-05,2]
[356311118,1742243453178,-500.0,9.041e-05,2]
[356311119,1742243453194,-500.0,9.041e-05,2]
[356311120,1742243453212,-500.0,9.041e-05,2]
[356311121,1742243453228,-110707.11,9.041e-05,2]
[356311122,1742243453243,-510.96342369,9.041e-05,2]
[356311123,1742243453259,-11406.95,9.041e-05,2]
[356311124,1742243453277,-500.0,9.041e-05,2]
[356311125,1742243453295,-3624.19,9.041e-05,2]
[356311126,1742243453310,-500.0,9.041e-05,2]
[356311127,1742243453323,-500.0,9.041e-05,2]
[356311128,1742243453342,-500.0,9.041e-05,2]
[356311129,1742243453354,-809.34,9.041e-05,2]
[356311130,1742243453371,-893.14,9.041e-05,2]
[356311131,1742243453384,-500.0,9.041e-05,2]
[356311132,1742243453399,-6164.8,9.041e-05,2]
[356311133,1742243453413,-500.0,9.041e-05,2]
[356311134,1742243453432,-11345.71,9.041e-05,2]
[356311135,1742243453447,-500.0,9.041e-05,2]
[356311136,1742243453461,-500.0,9.041e-05,2]
[356311137,1742243453479,-500.0,9.041e-05,2]
[356311138,1742243453493,-500.0,9.041e-05,2]
[356311139,1742243453507,-500.0,9.041e-05,2]
[356311140,1742243453521,-1021.16,9.041e-05,2]
[356311141,1742243453535,-500.0,9.041e-05,2]
[356311142,1742243453550,-500.0,9.041e-05,2]
[356311143,1742243453564,-500.0,9.041e-05,2]